bitfinex/quotes_SOLUSD_20250416
["timestamp","ask_amount","ask_price","bid_price","bid_amount"]
[1744834004824,0.03,132.95,132.94,64.59995496]
[1744834005029,0.03,132.95,132.94,64.31563182]
[1744834005436,0.03,132.95,132.94,64.74211653]
[1744834007538,0.063,132.96,132.95,18.79181043]
[1744834007735,1e-08,132.96,132.95,57.21992607]
[1744834007937,0.01000001,132.97,132.96,0.28432314]
[1744834008130,0.01000001,132.97,132.96,26.0]
[1744834008639,0.01000001,132.97,132.96,64.1437925]
[1744834008833,0.01000001,132.97,132.95,38.1437925]
[1744834009035,0.01000001,132.97,132.94,33.52219046]
[1744834009036,0.01000001,132.97,132.94,71.66598296]
[1744834009241,38.15379251,132.97,132.92,45.66688691]
[1744834009438,38.1437925,132.96,132.92,45.66688691]
[1744834009661,38.1437925,132.96,132.91,66.48751594]
[1744834009861,38.1437925,132.93,132.91,20.82]
[1744834010163,38.1437925,132.92,132.87,7.5260573]
[1744834010438,6.6362,132.94,132.87,30.0]
[1744834010439,38.1437925,132.89,132.87,30.0]
[1744834010641,38.1437925,132.88,132.87,30.0]
[1744834011131,45.66937949,132.88,132.87,30.0]
[1744834011744,64.48334697,132.88,132.8,20.76]
[1744834011946,38.1437925,132.84,132.82,30.0]
[1744834012145,38.1437925,132.84,132.8,28.29009783]
[1744834012358,7.52558699,132.88,132.82,38.1437925]
[1744834012541,38.1437925,132.87,132.82,38.1437925]
[1744834012730,38.1437925,132.87,132.83,38.1437925]
[1744834013155,38.1437925,132.86,132.81,45.67314971]
[1744834013355,20.53592178,132.9,132.81,7.52935721]
[1744834013534,38.1437925,132.86,132.81,45.67314971]
[1744834014360,38.1437925,132.85,132.81,7.52935721]
[1744834015037,38.1437925,132.84,132.8,20.76]
[1744834015235,38.1437925,132.83,132.78,38.1437925]
[1744834015446,38.1437925,132.84,132.79,38.1437925]
[1744834016048,7.5275824,132.85,132.79,38.1437925]
[1744834016362,38.1437925,132.84,132.79,38.1437925]
[1744834016567,45.671824,132.84,132.79,7.53065719]
[1744834016752,38.1437925,132.83,132.78,45.67487604]
[1744834017469,38.1437925,132.81,132.76,7.53218927]
[1744834017652,38.1437925,132.81,132.76,45.67598177]
[1744834018043,32.82656414,132.84,132.76,38.1437925]
[1744834018258,38.1437925,132.81,132.76,38.1437925]
[1744834018575,38.1437925,132.81,132.76,45.67596906]
[1744834018745,7.52925356,132.82,132.76,45.67596906]
[1744834019067,44.6226925,132.84,132.79,38.1437925]
[1744834019443,52.15066261,132.84,132.79,38.1437925]
[1744834020463,38.1437925,132.83,132.78,45.67499833]
[1744834021145,38.1437925,132.83,132.78,38.1437925]
[1744834021872,44.6226925,132.84,132.79,38.1437925]
[1744834022051,6.0766,132.88,132.83,38.1437925]
[1744834022248,7.52457488,132.9,132.87,38.1437925]
[1744834022568,38.1437925,132.88,132.83,38.1437925]
[1744834022864,7.52457488,132.9,132.81,20.78]
[1744834022865,38.1437925,132.89,132.84,38.1437925]
[1744834023060,45.66836738,132.9,132.85,38.1437925]
[1744834023462,38.1437925,132.89,132.84,38.1437925]
[1744834024248,45.66896514,132.89,132.84,38.1437925]
[1744834025246,38.1437925,132.87,132.83,38.1437925]
[1744834025466,38.1437925,132.87,132.82,45.67264228]
[1744834026275,45.66983265,132.88,132.84,38.1437925]
[1744834026450,7.52604015,132.88,132.84,38.1437925]
[1744834026652,7.52604015,132.88,132.82,7.52884978]
[1744834026853,13.59943625,132.93,132.87,38.1437925]
[1744834027168,6.0766,132.93,132.9,38.1437925]
[1744834027473,18.81129669,132.97,132.87,26.0]
[1744834027474,6.13140001,132.97,132.92,38.1437925]
[1744834027655,6.13140001,132.97,132.93,38.1437925]
[1744834027975,51.7958062,132.97,132.92,38.1437925]
[1744834028173,38.1437925,132.96,132.92,38.1437925]
[1744834028473,38.1437925,132.94,132.9,38.1437925]
[1744834028851,38.1437925,132.94,132.89,45.66840855]
[1744834029270,57.67240557,132.94,132.89,65.19702162]
[1744834029788,57.67240557,132.94,132.9,57.67240557]
[1744834030473,71.32468982,132.97,132.92,57.67240557]
[1744834030881,57.67240557,132.96,132.92,57.67240557]
[1744834031256,71.32468982,132.97,132.92,57.67240557]
[1744834031876,63.80380558,132.97,132.92,65.19565981]
[1744834032061,0.01000001,132.97,132.92,7.52325424]
[1744834032256,57.67240557,132.96,132.92,57.67240557]
[1744834032452,57.67240557,132.96,132.91,65.19611989]
[1744834032853,57.67240557,132.95,132.9,33.52433565]
[1744834033052,57.67240557,132.95,132.91,57.67240557]
[1744834033256,57.67240557,132.96,132.91,57.67240557]
[1744834034074,57.67240557,132.96,132.91,65.19616753]
[1744834034258,65.19353439,132.96,132.91,65.19616753]
[1744834034458,7.52112882,132.96,132.91,65.19616753]
[1744834034658,65.19353439,132.96,132.92,57.67240557]
[1744834035282,57.67240557,132.96,132.92,57.67240557]
[1744834035870,57.68240558,132.97,132.93,57.67240557]
[1744834036076,0.01000001,132.97,132.93,57.67240557]
[1744834036278,57.68240558,132.97,132.93,57.67240557]
[1744834037279,57.68240558,132.97,132.92,65.1951885]
[1744834037983,57.67240557,132.96,132.91,57.67240557]
[1744834038183,65.19404133,132.95,132.9,91.19679871]
[1744834038483,57.67240557,132.92,132.87,20.78]
[1744834038689,7.52163576,132.95,132.86,57.67240557]
[1744834038690,52.467859,132.95,132.86,57.67240557]
[1744834038898,52.467859,132.95,132.84,30.0]
[1744834038899,57.67240557,132.87,132.84,30.0]
[1744834039112,57.67240557,132.85,132.84,30.0]
[1744834040116,57.67240557,132.85,132.79,7.53056753]
[1744834040276,20.72,132.88,132.82,57.67240557]
[1744834040477,65.1976209,132.89,132.84,57.67240557]
[1744834040677,57.67240557,132.88,132.83,57.67240557]
[1744834040896,65.1976209,132.89,132.84,57.67240557]
[1744834041093,57.67240557,132.89,132.84,57.67240557]
[1744834041294,57.67240557,132.9,132.86,57.67240557]
[1744834041689,57.67240557,132.9,132.82,18.64964886]
[1744834041690,57.67240557,132.89,132.85,57.67240557]
[1744834042011,57.67240557,132.89,132.82,18.64964886]
[1744834042012,57.67240557,132.89,132.84,57.67240557]
[1744834042188,57.67240557,132.89,132.85,57.67240557]
[1744834042388,65.19743153,132.89,132.85,57.67240557]
[1744834042733,57.67240557,132.9,132.85,65.19956265]
[1744834042911,59.40720557,132.91,132.86,57.67240557]
[1744834043119,57.67240557,132.89,132.85,57.67240557]
[1744834043286,57.67240557,132.89,132.84,65.20002932]
[1744834043682,57.67240557,132.89,132.85,57.67240557]
[1744834044216,57.67240557,132.89,132.85,65.19967085]
[1744834046281,57.67240557,132.9,132.85,65.19967085]
[1744834046496,91.98461146,132.92,132.87,57.67240557]
[1744834047034,71.26461146,132.92,132.87,57.67240557]
[1744834047529,13.59220589,132.92,132.88,57.67240557]
[1744834047901,71.26461146,132.92,132.87,57.67240557]
[1744834048098,57.67240557,132.91,132.87,65.19844505]
[1744834048308,57.67240557,132.91,132.87,7.52603948]
[1744834048511,57.67240557,132.91,132.87,65.19844505]
[1744834048706,13.59220589,132.92,132.89,57.67240557]
[1744834048707,6.0687,132.92,132.89,57.67240557]
[1744834048932,65.19464784,132.94,132.89,57.67240557]
[1744834049232,7.52224227,132.94,132.9,38.02266801]
[1744834049434,45.54491028,132.94,132.89,38.02266801]
[1744834049722,38.02266801,132.95,132.91,38.02266801]
[1744834049929,15.74481948,132.96,132.89,38.02266801]
[1744834049930,38.02266801,132.93,132.89,38.02266801]
[1744834050235,38.02266801,132.94,132.89,38.02266801]
[1744834050604,38.02266801,132.94,132.9,38.02266801]
[1744834050805,38.02266801,132.95,132.9,38.02266801]
[1744834051022,38.02266801,132.95,132.91,37.77266801]
[1744834051726,45.54432978,132.95,132.91,37.77266801]
[1744834051915,45.54432978,132.95,132.9,7.52422078]
[1744834051916,38.02266801,132.94,132.9,38.02266801]
[1744834052319,38.02266801,132.94,132.9,45.54703567]
[1744834052820,7.52166177,132.95,132.91,38.02266801]
[1744834053027,38.02266801,132.95,132.91,38.02266801]
[1744834053609,0.01000001,132.97,132.94,38.02266801]
[1744834053825,0.01000001,132.97,132.96,38.02266801]
[1744834054129,0.01000001,132.97,132.95,38.02266801]
[1744834054629,0.01000001,132.97,132.94,45.54446047]
[1744834054825,0.01000001,132.97,132.93,45.5453209]
[1744834055025,38.02266801,132.95,132.91,7.5237438]
[1744834055238,38.02266801,132.94,132.91,7.5237438]
[1744834055534,0.01000001,132.97,132.93,38.02266801]
[1744834055737,0.01000001,132.97,132.96,38.02266801]
[1744834056409,0.01000001,132.97,132.94,38.02266801]
[1744834056609,0.01000001,132.97,132.93,38.02266801]
[1744834058636,0.01000001,132.97,132.95,38.02266801]
[1744834058811,0.01000001,132.97,132.96,38.02266801]
[1744834059627,0.01000001,132.97,132.96,45.54372697]
[1744834061027,0.01000001,132.97,132.96,7.52105896]
[1744834061226,38.03266802,132.97,132.93,38.02266801]
[1744834061431,38.03266802,132.97,132.92,45.5459903]
[1744834062127,45.55327678,132.97,132.92,45.5459903]
[1744834062326,38.03266802,132.97,132.93,38.02266801]
[1744834062936,45.55316614,132.97,132.92,45.5459903]
[1744834064035,38.02266801,132.93,132.89,58.74266801]
[1744834064340,38.02266801,132.9,132.85,7.52728641]
[1744834064538,38.02266801,132.89,132.86,30.0]
[1744834064924,38.02266801,132.88,132.86,30.0]
[1744834065344,38.02266801,132.87,132.83,0.063]
[1744834065645,38.02266801,132.87,132.83,30.063]
[1744834065841,38.02266801,132.87,132.83,37.59137636]
[1744834068915,38.02266801,132.95,132.91,38.02266801]
[1744834069135,46.29166801,132.96,132.92,38.02266801]
[1744834069330,46.29166801,132.96,132.91,38.02266801]
[1744834069534,38.02266801,132.95,132.9,38.02266801]
[1744834069735,38.02266801,132.94,132.9,38.02266801]
[1744834070518,45.54462651,132.95,132.9,38.02266801]
[1744834071020,38.02266801,132.92,132.88,64.02266801]
[1744834071215,38.02266801,132.91,132.86,38.02266801]
[1744834071546,38.02266801,132.89,132.84,45.55030684]
[1744834071737,38.02266801,132.89,132.84,38.02266801]
[1744834071935,38.02266801,132.88,132.85,30.0]
[1744834072435,38.02266801,132.87,132.85,30.0]
[1744834072630,38.02266801,132.88,132.85,30.0]
[1744834073020,38.02266801,132.87,132.85,30.0]
[1744834073422,38.02266801,132.86,132.85,30.0]
[1744834073826,38.02266801,132.86,132.83,0.063]
[1744834074021,38.02266801,132.84,132.83,30.063]
[1744834074422,45.55052106,132.84,132.83,30.063]
[1744834074616,45.69268263,132.84,132.83,30.063]
[1744834075022,45.69268263,132.84,132.83,0.063]
[1744834075942,38.02266801,132.8,132.79,0.063]
[1744834076534,45.55278849,132.8,132.79,0.063]
[1744834076735,53.80515006,132.8,132.79,0.063]
[1744834076939,91.82781807,132.8,132.79,0.063]
[1744834077119,53.80515006,132.8,132.79,0.063]
[1744834077320,73.59908594,132.8,132.79,0.063]
[1744834077739,150.34966183,132.8,132.79,1e-08]
[1744834077937,19.07613357,132.79,132.77,0.063]
[1744834078119,57.81660389,132.78,132.77,0.063]
[1744834078522,26.0,132.76,132.75,0.063]
[1744834078721,57.81660389,132.76,132.75,0.063]
[1744834079129,76.89273746,132.76,132.75,0.063]
[1744834079535,45.07613357,132.75,132.73,0.063]
[1744834079849,104.00473746,132.74,132.73,0.063]
[1744834080283,46.07613357,132.73,132.72,1e-08]
[1744834080428,169.24343311,132.73,132.72,1e-08]
[1744834081435,65.35069565,132.73,132.72,1e-08]
[1744834081633,57.81660389,132.73,132.72,1e-08]
[1744834081843,64.26860389,132.74,132.72,1e-08]
[1744834082045,57.81660389,132.77,132.72,57.8166039]
[1744834082241,57.81660389,132.76,132.72,57.8166039]
[1744834082439,57.81660389,132.76,132.72,1e-08]
[1744834083042,57.81660389,132.75,132.72,1e-08]
[1744834083741,1.7157,132.8,132.74,57.81660389]
[1744834083956,63.85080389,132.82,132.77,57.81660389]
[1744834084166,57.81660389,132.81,132.76,57.81660389]
[1744834084382,57.81660389,132.8,132.75,57.81660389]
[1744834084688,6.0342,132.82,132.75,57.81660389]
[1744834084689,57.81660389,132.81,132.76,57.81660389]
[1744834085649,63.85080389,132.82,132.77,57.81660389]
[1744834085848,57.81660389,132.81,132.77,57.81660389]
[1744834086050,63.85080389,132.82,132.77,57.81660389]
[1744834086767,57.81660389,132.81,132.76,57.81660389]
[1744834087064,57.81660389,132.81,132.77,57.81660389]
[1744834087268,13.56327464,132.82,132.77,57.81660389]
[1744834087454,57.81660389,132.8,132.76,57.81660389]
[1744834087656,63.85080389,132.82,132.77,57.81660389]
[1744834088046,57.81660389,132.82,132.77,57.81660389]
[1744834088248,57.81660389,132.8,132.75,57.81660389]
[1744834088556,65.34634833,132.81,132.76,57.81660389]
[1744834089162,57.81660389,132.81,132.76,47.53246412]
[1744834089356,57.81660389,132.81,132.77,57.81660389]
[1744834089557,65.34564956,132.82,132.77,57.81660389]
[1744834090065,57.81660389,132.82,132.77,57.81660389]
[1744834090384,57.81660389,132.87,132.81,57.81660389]
[1744834090570,57.81660389,132.85,132.8,57.81660389]
[1744834091657,57.81660389,132.84,132.79,57.81660389]
[1744834091858,57.81660389,132.83,132.76,46.27624886]
[1744834092061,57.81660389,132.8,132.76,83.81660389]
[1744834092252,57.81660389,132.8,132.76,57.81660389]
[1744834092451,57.81660389,132.82,132.77,57.81660389]
[1744834092649,57.81660389,132.83,132.78,57.81660389]
[1744834093250,65.34559048,132.82,132.77,57.81660389]
[1744834094455,57.81660389,132.81,132.76,57.81660389]
[1744834094657,57.81660389,132.8,132.75,57.81660389]
[1744834094855,7.52898659,132.82,132.75,57.81660389]
[1744834094856,57.81660389,132.79,132.75,57.81660389]
[1744834095151,57.81660389,132.77,132.73,57.81660389]
[1744834096152,65.34846127,132.77,132.73,57.81660389]
[1744834096356,57.81660389,132.76,132.72,20.68000001]
[1744834096556,57.81660389,132.74,132.72,1e-08]
[1744834096751,57.81660389,132.73,132.72,1e-08]
[1744834097072,57.81660389,132.74,132.72,1e-08]
[1744834098877,7.53409176,132.73,132.72,1e-08]
[1744834099476,65.35069565,132.73,132.72,1e-08]
[1744834099669,7.53409176,132.73,132.72,1e-08]
[1744834099980,65.35069565,132.73,132.72,1e-08]
[1744834100378,70.75747477,132.81,132.72,57.8166039]
[1744834100379,20.49913607,132.8,132.72,57.8166039]
[1744834100563,65.34729144,132.79,132.74,57.81660389]
[1744834100766,57.81660389,132.77,132.72,57.8166039]
[1744834101155,38.12167278,132.78,132.73,38.12167278]
[1744834102376,45.65325929,132.78,132.73,38.12167278]
[1744834102579,7.53012048,132.8,132.73,45.65567313]
[1744834102789,38.12167278,132.78,132.73,38.12167278]
[1744834102979,7.53012048,132.8,132.74,38.12167278]
[1744834103287,57.80427016,132.79,132.74,57.80427016]
[1744834103975,1.6728,132.84,132.78,57.80427016]
[1744834104178,6.4576,132.86,132.76,26.0]
[1744834104179,7.52752006,132.85,132.81,57.80427016]
[1744834104483,57.80427016,132.83,132.78,57.80427016]
[1744834105367,65.3328644,132.83,132.78,57.80427016]
[1744834106283,57.80427016,132.82,132.74,18.933972]
[1744834106484,57.80427016,132.8,132.75,57.80427016]
[1744834106686,7.55809103,132.84,132.79,57.80427016]
[1744834106984,57.80427016,132.82,132.77,57.80427016]
[1744834107569,65.33370185,132.82,132.77,57.80427016]
[1744834107970,65.33370185,132.82,132.77,65.33606273]
[1744834108787,57.80427016,132.8,132.75,26.0]
[1744834108990,57.80427016,132.79,132.75,26.0]
[1744834109180,57.80427016,132.79,132.74,7.53352418]
[1744834109390,57.80427016,132.78,132.74,65.33779434]
[1744834110187,57.80427016,132.75,132.72,1e-08]
[1744834110486,57.80427016,132.76,132.72,57.80427017]
[1744834110887,57.80427016,132.76,132.72,1e-08]
[1744834111066,57.80427016,132.76,132.72,57.80427017]
[1744834111272,6.6339,132.78,132.73,57.80427016]
[1744834111471,65.33518816,132.79,132.74,57.80427016]
[1744834111693,57.80427016,132.78,132.73,57.80427016]
[1744834111886,57.80427016,132.77,132.72,65.33889299]
[1744834112074,57.80427016,132.76,132.72,1e-08]
[1744834112896,57.80427016,132.75,132.72,1e-08]
[1744834113078,57.80427016,132.76,132.72,1e-08]
[1744834113392,57.80427016,132.74,132.72,1e-08]
[1744834113599,57.80427016,132.76,132.72,1e-08]
[1744834113777,7.53204444,132.77,132.73,57.80427016]
[1744834113977,65.3363146,132.77,132.72,57.80427017]
[1744834114894,26.14216157,132.78,132.72,57.80427017]
[1744834114895,65.33707187,132.76,132.72,1e-08]
[1744834117093,57.80427016,132.83,132.75,57.80427016]
[1744834117292,57.80427016,132.81,132.75,18.64964886]
[1744834117513,57.80427016,132.76,132.72,1e-08]
[1744834117823,57.80427016,132.73,132.72,1e-08]
[1744834117974,57.80427016,132.74,132.72,1e-08]
[1744834119095,65.33835227,132.74,132.72,1e-08]
[1744834119396,57.94643173,132.73,132.72,1e-08]
[1744834119977,7.53408211,132.74,132.72,1e-08]
[1744834120286,57.94643173,132.73,132.72,1e-08]
[1744834120877,76.73824216,132.73,132.72,1e-08]
[1744834121077,84.41449549,132.73,132.72,1e-08]
[1744834121606,110.41449549,132.73,132.72,1e-08]
[1744834121807,26.0,132.7,132.69,0.063]
[1744834121993,0.14216157,132.71,132.69,0.063]
[1744834122199,57.80427016,132.7,132.69,0.063]
[1744834122593,57.94643173,132.7,132.69,0.063]
[1744834123222,84.41619875,132.7,132.69,0.063]
[1744834123909,84.27403718,132.7,132.69,0.063]
[1744834124118,26.69745713,132.76,132.69,0.063]
[1744834124312,7.53295668,132.75,132.7,57.80427016]
[1744834124513,65.33722684,132.75,132.7,57.80427016]
[1744834124891,57.80427016,132.74,132.69,57.86727016]
[1744834125227,7.53370214,132.74,132.7,38.14198826]
[1744834125511,45.67437753,132.76,132.69,7.59925631]
[1744834125710,45.67437753,132.76,132.71,38.14198826]
[1744834125902,38.14198826,132.75,132.7,38.14198826]
[1744834126096,7.53238927,132.76,132.7,38.14198826]
[1744834126295,45.67437753,132.76,132.71,38.14198826]
[1744834126702,45.67437753,132.76,132.7,7.53567826]
[1744834126703,38.14198826,132.75,132.7,45.67766652]
[1744834127093,1.7049,132.83,132.75,18.64964886]
[1744834127309,38.14198826,132.81,132.77,38.14198826]
[1744834127507,38.14198826,132.79,132.74,38.14198826]
[1744834128108,38.14198826,132.77,132.71,26.0]
[1744834128292,0.14216157,132.8,132.72,38.14198826]
[1744834128497,38.14198826,132.79,132.74,38.14198826]
[1744834128894,38.14198826,132.77,132.73,38.14198826]
[1744834129107,38.14198826,132.77,132.72,45.67664769]
[1744834129305,7.53027418,132.8,132.73,38.14198826]
[1744834129306,38.14198826,132.78,132.73,38.14198826]
[1744834129526,45.67286343,132.79,132.74,38.14198826]
[1744834129719,38.14198826,132.77,132.72,45.67646668]
[1744834130224,0.14216157,132.78,132.72,45.67646668]
[1744834130401,38.28414983,132.78,132.73,38.14198826]
[1744834130599,38.14198826,132.78,132.73,45.67593732]
[1744834130819,38.14198826,132.8,132.75,38.14198826]
[1744834132017,38.14198826,132.81,132.76,38.14198826]
[1744834132317,38.17198826,132.82,132.77,38.14198826]
[1744834133020,45.70115156,132.82,132.77,38.14198826]
[1744834133406,0.03,132.82,132.79,38.14198826]
[1744834133715,7.55904094,132.82,132.78,38.14198826]
[1744834134300,0.03,132.82,132.78,38.14198826]
[1744834136022,38.17198826,132.82,132.77,45.67367935]
[1744834136227,38.14198826,132.81,132.76,38.14198826]
[1744834136402,38.14198826,132.8,132.76,26.0]
[1744834136598,38.14198826,132.78,132.71,0.14216157]
[1744834136803,38.14198826,132.77,132.72,38.14198826]
[1744834137004,38.14198826,132.77,132.73,7.53409176]
[1744834137224,45.6739926,132.77,132.73,26.0]
[1744834137404,45.6739926,132.77,132.72,45.67659902]
[1744834137723,45.6739926,132.77,132.72,64.14198826]
[1744834138118,45.6739926,132.77,132.72,71.67651079]
[1744834138520,38.14198826,132.76,132.71,45.67698798]
[1744834139427,45.67441437,132.76,132.71,45.67698798]
[1744834139736,38.14198826,132.76,132.71,38.14198826]
[1744834140105,38.14198826,132.76,132.7,54.15567943]
[1744834140311,38.14198826,132.75,132.7,54.15567943]
[1744834140506,38.14198826,132.75,132.7,92.29766769]
[1744834140919,38.14198826,132.75,132.7,66.29766769]
[1744834141635,7.53182194,132.77,132.7,58.76198826]
[1744834141841,7.53182194,132.77,132.72,38.14198826]
[1744834142010,38.14198826,132.77,132.72,38.14198826]
[1744834142629,38.14198826,132.77,132.73,38.14198826]
[1744834143317,45.67391389,132.77,132.72,45.67655683]
[1744834145732,38.14198826,132.77,132.72,45.67655683]
[1744834145930,8.0897,132.79,132.75,38.14198826]
[1744834146130,15.95870168,132.83,132.78,38.14198826]
[1744834146317,15.95870168,132.83,132.79,38.14198826]
[1744834146318,54.10068994,132.83,132.79,38.14198826]
[1744834147038,46.57188826,132.83,132.79,38.14198826]
[1744834148930,0.03,132.82,132.78,45.67317677]
[1744834149331,0.03,132.82,132.81,38.14198826]
[1744834149830,0.03,132.82,132.8,38.14198826]
[1744834150333,0.03,132.82,132.78,33.53118851]
[1744834150334,0.03,132.82,132.81,83.07596026]
[1744834150916,0.03,132.82,132.81,64.14198826]
[1744834151322,0.03,132.82,132.81,71.67154175]
[1744834151824,0.03,132.82,132.81,90.74767532]
[1744834152558,0.03,132.82,132.81,64.74767532]
[1744834152559,1e-08,132.82,132.81,64.74767532]
[1744834152757,0.03,132.84,132.83,0.28432314]
[1744834152948,0.03,132.84,132.83,26.0]
[1744834153452,0.03,132.84,132.78,26.0]
[1744834153632,0.03,132.84,132.8,38.14198826]
[1744834154030,0.03,132.84,132.82,38.14198826]
[1744834155654,0.03,132.84,132.83,38.14198826]
[1744834156527,0.03,132.84,132.81,38.14198826]
[1744834156941,0.03,132.84,132.8,26.17959552]
[1744834157140,38.17198826,132.84,132.79,71.67246866]
[1744834157554,38.14198826,132.83,132.79,26.0]
[1744834157754,38.14198826,132.83,132.75,20.84432314]
[1744834157755,38.14198826,132.8,132.75,20.56]
[1744834158049,38.14198826,132.78,132.77,30.0]
[1744834158352,38.28414983,132.78,132.71,64.14198826]
[1744834158563,38.28414983,132.78,132.71,71.6770184]
[1744834158564,38.14198826,132.76,132.71,71.6770184]
[1744834158730,0.14216157,132.78,132.71,33.53503014]
[1744834159052,38.14198826,132.76,132.72,68.14198826]
[1744834159262,38.14198826,132.78,132.73,38.14198826]
[1744834159449,38.14198826,132.77,132.73,38.14198826]
[1744834159647,38.14198826,132.77,132.73,45.67606222]
[1744834160656,38.14198826,132.76,132.72,7.53443811]
[1744834160840,45.67413582,132.77,132.72,45.67642637]
[1744834161262,38.14198826,132.75,132.7,71.67741876]
[1744834161636,45.67445012,132.76,132.71,38.14198826]
[1744834162048,6.1327,132.77,132.73,38.14198826]
[1744834162249,39.84588826,132.79,132.74,38.14198826]
[1744834162443,38.14198826,132.78,132.73,38.14198826]
[1744834162649,38.14198826,132.78,132.73,64.14198826]
[1744834163366,38.14198826,132.77,132.73,26.0]
[1744834163672,38.14198826,132.75,132.71,33.53481218]
[1744834164160,38.14198826,132.73,132.69,38.20498826]
[1744834164360,38.14198826,132.73,132.69,0.063]
[1744834164543,38.14198826,132.74,132.69,38.20498826]
[1744834164946,38.14198826,132.71,132.69,0.063]
[1744834165148,38.14198826,132.72,132.69,0.063]
[1744834165339,38.14198826,132.73,132.69,0.063]
[1744834165550,38.14198826,132.74,132.69,38.20498826]
[1744834165774,38.14198826,132.73,132.69,0.063]
[1744834166641,38.14198826,132.72,132.69,0.063]
[1744834166843,7.53363418,132.74,132.69,0.063]
[1744834167054,38.14198826,132.72,132.69,0.063]
[1744834167958,38.14198826,132.74,132.69,38.20498826]
[1744834168165,20.48,132.76,132.72,38.14198826]
[1744834168352,58.62198826,132.76,132.72,38.14198826]
[1744834169366,66.15438632,132.76,132.72,38.14198826]
[1744834170048,66.15438632,132.76,132.71,45.67710078]
[1744834171145,45.67402231,132.77,132.72,38.14198826]
[1744834171345,38.14198826,132.76,132.71,45.67710078]
[1744834171970,38.14198826,132.76,132.71,45.67710078]
[1744834172263,45.67450575,132.76,132.71,45.67710078]
[1744834172654,38.14198826,132.75,132.7,38.14198826]
[1744834172859,38.14198826,132.74,132.69,38.20498826]
[1744834173072,38.14198826,132.72,132.69,0.063]
[1744834173369,38.14198826,132.75,132.7,38.14198826]
[1744834173573,38.14198826,132.74,132.69,45.74132805]
[1744834173759,38.14198826,132.73,132.69,0.063]
[1744834174160,45.67664769,132.72,132.69,0.063]
[1744834174361,38.14198826,132.71,132.69,0.063]
[1744834174776,45.67664769,132.72,132.69,0.063]
[1744834175552,38.14198826,132.72,132.69,0.063]
[1744834175752,38.14198826,132.7,132.69,0.063]
[1744834175969,38.14198826,132.71,132.69,0.063]
[1744834176173,52.26465643,132.73,132.69,0.063]
[1744834176674,38.14198826,132.72,132.69,0.063]
[1744834176992,38.14198826,132.7,132.69,0.063]
[1744834177655,38.14198826,132.71,132.69,0.063]
[1744834178068,45.67778328,132.7,132.69,0.063]
[1744834178789,45.81994485,132.7,132.69,0.063]
[1744834179360,109.59340441,132.7,132.67,0.063]
[1744834179675,38.28414983,132.68,132.67,0.063]
[1744834180091,45.67891922,132.68,132.67,0.063]
[1744834181177,6.5884,132.73,132.67,0.063]
[1744834181373,6.5884,132.73,132.69,38.14198826]
[1744834181679,38.14198826,132.72,132.67,38.20498826]
[1744834181873,38.14198826,132.71,132.67,38.20498826]
[1744834182392,45.67684617,132.72,132.67,38.20498826]
[1744834182683,7.53485791,132.72,132.68,38.14198826]
[1744834183059,45.67684617,132.72,132.67,0.063]
[1744834183258,45.67684617,132.72,132.67,38.20498826]
[1744834183480,45.67684617,132.72,132.67,45.74245119]
[1744834184777,6.5884,132.73,132.67,45.74245119]
[1744834184778,38.14198826,132.7,132.67,0.063]
[1744834184982,38.14198826,132.69,132.67,0.063]
[1744834185457,38.14198826,132.68,132.67,0.063]
[1744834186679,56.93379869,132.68,132.67,1e-08]
[1744834186883,19.07613357,132.67,132.66,0.063]
[1744834187178,38.28414983,132.67,132.66,0.063]
[1744834188790,45.82164888,132.67,132.66,0.063]
[1744834188967,45.67948731,132.67,132.66,0.063]
[1744834189277,51.8420815,132.68,132.66,0.063]
[1744834190057,38.14198826,132.68,132.66,0.063]
[1744834190265,6.2427,132.72,132.66,38.20498826]
[1744834190466,38.14198826,132.71,132.66,38.20498826]
[1744834190860,20.44,132.74,132.69,38.14198826]
[1744834191093,58.58198826,132.74,132.69,38.14198826]
[1744834191766,38.14198826,132.73,132.68,38.14198826]
[1744834192158,45.67632968,132.73,132.68,38.14198826]
[1744834193062,20.44,132.74,132.69,38.14198826]
[1744834193063,66.1155936,132.74,132.69,38.14198826]
[1744834193386,7.53360534,132.74,132.69,38.14198826]
[1744834193597,45.6755936,132.74,132.69,38.14198826]
[1744834195286,38.14198826,132.73,132.68,38.14198826]
[1744834195485,38.14198826,132.72,132.67,38.14198826]
[1744834196094,45.6755936,132.74,132.69,38.14198826]
[1744834196392,7.5331721,132.75,132.71,38.14198826]
[1744834196594,20.44,132.78,132.73,38.14198826]
[1744834196817,58.58198826,132.78,132.73,38.14198826]
[1744834196994,66.11336156,132.78,132.73,38.14198826]
[1744834197300,38.14198826,132.75,132.7,71.67756011]